bitfinex-derivatives/quotes_BTCF0:USTF0_20251011
["timestamp","ask_amount","ask_price","bid_price","bid_amount"]
[1760141520095,0.1329658,112480.0,112470.0,0.4495511]
[1760141520096,8.751e-05,112480.0,112470.0,0.4495511]
[1760141520603,0.53333965,112480.0,112470.0,0.4495511]
[1760141520803,0.13333965,112480.0,112470.0,0.4495511]
[1760141521000,0.89413965,112480.0,112430.0,0.3608]
[1760141521197,0.13333965,112480.0,112460.0,0.0887564]
[1760141521496,0.22208755,112480.0,112450.0,0.0887669]
[1760141521697,0.66174545,112480.0,112450.0,0.4495669]
[1760141522000,0.21219945,112480.0,112470.0,0.0887512]
[1760141522208,0.3608,112510.0,112490.0,0.0887354]
[1760141522396,0.088721,112510.0,112490.0,0.3608]
[1760141522601,0.1327267,112500.0,112490.0,0.4495322]
[1760141522906,0.37025523,112540.0,112510.0,0.0887196]
[1760141523101,0.3608,112530.0,112510.0,0.4495196]
[1760141523401,0.13254884,112520.0,112500.0,0.4495272]
[1760141523602,0.0887089,112530.0,112510.0,0.4495181]
[1760141523797,0.3608,112550.0,112510.0,0.3608]
[1760141524002,0.22125824,112530.0,112520.0,0.3608]
[1760141524201,0.13390039,112540.0,112530.0,0.0887038]
[1760141524501,0.0887038,112530.0,112520.0,0.3608]
[1760141524701,0.08878804,112530.0,112520.0,0.3608]
[1760141524901,0.43114857,112550.0,112530.0,0.0887038]
[1760141524902,0.07034857,112550.0,112530.0,0.0887038]
[1760141525102,0.088687,112560.0,112540.0,0.57071576]
[1760141525297,0.1341704,112550.0,112540.0,0.65941166]
[1760141525496,0.1341704,112560.0,112540.0,0.57071576]
[1760141525701,0.32574476,112600.0,112560.0,0.0886802]
[1760141525906,0.3608,112610.0,112580.0,0.3608]
[1760141526207,0.3608,112610.0,112570.0,0.3522]
[1760141526208,0.1341704,112580.0,112570.0,0.3522]
[1760141526408,0.02466278,112580.0,112570.0,0.713]
[1760141526708,0.53370893,112580.0,112570.0,0.713]
[1760141527007,0.4,112580.0,112570.0,0.713]
[1760141527205,0.00010994,112580.0,112570.0,1.01158746]
[1760141527408,0.1340778,112580.0,112570.0,1.01158746]
[1760141527607,0.00010994,112580.0,112570.0,1.01158746]
[1760141527903,0.1340778,112580.0,112570.0,0.713]
[1760141528105,0.6469754,112580.0,112570.0,0.713]
[1760141528406,0.6469754,112580.0,112570.0,0.66861047]
[1760141528709,0.2469754,112580.0,112570.0,0.66861047]
[1760141528909,0.6469754,112580.0,112570.0,0.62422094]
[1760141529103,0.3569754,112580.0,112570.0,0.50422597]
[1760141529296,0.57889706,112580.0,112570.0,0.50422597]
[1760141529497,0.15757392,112580.0,112570.0,1.24583863]
[1760141529699,0.10506662,112620.0,112590.0,0.0886558]
[1760141529901,0.0886408,112610.0,112600.0,0.3608]
[1760141530102,0.19058367,112620.0,112600.0,0.3608]
[1760141530307,0.19058367,112620.0,112610.0,0.3608]
[1760141530308,0.14596691,112620.0,112610.0,0.3608]
[1760141530507,0.05732641,112620.0,112610.0,0.19304652]
[1760141530708,0.67929115,112620.0,112610.0,0.19304652]
[1760141531106,0.59065815,112620.0,112610.0,0.19304652]
[1760141531306,0.26830686,112620.0,112610.0,0.28168732]
[1760141531502,0.15835845,112620.0,112610.0,0.53462768]
[1760141531802,0.30824306,112660.0,112620.0,0.0886317]
[1760141532006,0.0886094,112650.0,112640.0,0.3608]
[1760141532201,0.22257638,112650.0,112630.0,0.3608]
[1760141532406,0.39684656,112660.0,112640.0,0.3608]
[1760141532603,0.39684456,112660.0,112650.0,0.3608]
[1760141532803,0.39684456,112660.0,112640.0,0.52513096]
[1760141532804,0.0886093,112650.0,112640.0,0.3608]
[1760141533005,0.11287532,112650.0,112640.0,0.3608]
[1760141533205,0.6456769,112650.0,112640.0,0.3608]
[1760141533413,0.1570676,112650.0,112640.0,0.52513096]
[1760141533605,0.0886093,112650.0,112640.0,0.52513096]
[1760141533805,0.088632,112630.0,112600.0,0.47330151]
[1760141534000,0.3608,112630.0,112600.0,0.05069678]
[1760141534212,0.3608,112610.0,112570.0,0.38465361]
[1760141534506,0.4494703,112580.0,112570.0,0.16019096]
[1760141534712,0.3608,112580.0,112540.0,0.39246694]
[1760141535006,0.4494858,112560.0,112540.0,0.40821843]
[1760141535306,0.449486,112550.0,112540.0,7.252e-05]
[1760141535506,0.3608,112550.0,112510.0,0.40814591]
[1760141535707,0.0887017,112530.0,112520.0,0.16019096]
[1760141535913,0.3608,112530.0,112520.0,0.16019096]
[1760141536107,0.0887175,112510.0,112500.0,0.04734591]
[1760141536309,0.52204835,112510.0,112500.0,0.14773455]
[1760141536605,0.20568602,112510.0,112500.0,0.23646015]
[1760141536808,0.56648602,112510.0,112500.0,0.14773455]
[1760141537007,0.56648602,112510.0,112470.0,0.3608]
[1760141537008,0.0887344,112490.0,112470.0,0.3608]
[1760141537211,0.3608,112490.0,112480.0,0.14773455]
[1760141537408,0.13251686,112490.0,112480.0,0.59727575]
[1760141537609,0.09663799,112510.0,112500.0,0.0887255]
[1760141537610,0.08133245,112510.0,112500.0,0.0887255]
[1760141537806,0.3608,112540.0,112530.0,0.0887018]
[1760141538108,0.13328013,112540.0,112530.0,0.4495002]
[1760141538607,0.51887249,112540.0,112520.0,0.0887092]
[1760141538812,0.15807249,112540.0,112530.0,0.0887019]
[1760141539109,0.22768229,112540.0,112530.0,0.0887019]
[1760141539310,0.02486209,112540.0,112530.0,0.8495019]
[1760141539504,0.3608,112560.0,112550.0,0.0886822]
[1760141539710,0.4494786,112560.0,112530.0,0.0886944]
[1760141539911,0.4494786,112560.0,112520.0,0.3608]
[1760141539912,0.4494863,112550.0,112520.0,0.3608]
[1760141540107,0.49400472,112560.0,112480.0,0.6104938]
[1760141540108,0.3608,112530.0,112510.0,0.0887163]
[1760141540308,0.3608,112530.0,112520.0,0.0887098]
[1760141540604,0.13289176,112530.0,112520.0,0.0887098]
[1760141540812,0.09427787,112560.0,112550.0,0.0886861]
[1760141541108,0.3608,112580.0,112560.0,0.0886728]
[1760141541306,0.3608,112570.0,112560.0,0.0886782]
[1760141541514,0.49330797,112570.0,112550.0,0.0886804]
[1760141541709,0.4494804,112560.0,112530.0,0.4494955]
[1760141541921,0.4494804,112560.0,112540.0,0.0886937]
[1760141541922,0.3608,112560.0,112540.0,0.0886937]
[1760141542103,0.3608,112560.0,112530.0,0.3608]
[1760141542104,0.3608,112550.0,112530.0,0.0887009]
[1760141542309,0.3608,112550.0,112530.0,0.4495009]
[1760141542505,0.1327917,112550.0,112540.0,0.0886939]
[1760141542710,0.02514331,112560.0,112550.0,0.088686]
[1760141543008,0.4935917,112560.0,112530.0,0.3608]
[1760141543216,8.175e-05,112550.0,112540.0,0.088694]
[1760141543607,0.08876905,112550.0,112520.0,0.5275641]
[1760141543808,0.3608,112530.0,112510.0,0.4495151]
[1760141544015,0.4495023,112530.0,112500.0,0.5275836]
[1760141544220,0.08877593,112520.0,112500.0,0.3608]
[1760141544412,6.593e-05,112520.0,112500.0,0.3608]
[1760141544613,0.08877713,112520.0,112500.0,0.3608]
[1760141544811,0.44957713,112520.0,112500.0,0.3608]
[1760141545114,0.4495173,112510.0,112480.0,0.5275992]
[1760141545316,0.449533,112490.0,112460.0,0.43886]
[1760141545614,0.4495413,112480.0,112460.0,0.0887565]
[1760141545813,9.554e-05,112470.0,112460.0,0.0887565]
[1760141546517,4e-08,112470.0,112460.0,0.95104586]
[1760141547213,4e-08,112470.0,112460.0,0.55104586]
[1760141547412,4e-08,112470.0,112460.0,0.95104586]
[1760141547914,4e-08,112470.0,112460.0,0.3608]
[1760141548112,0.02447281,112470.0,112450.0,0.3608646]
[1760141548413,0.60724352,112470.0,112450.0,0.47268614]
[1760141548718,0.15769322,112470.0,112450.0,0.47268614]
[1760141549017,0.0887567,112460.0,112450.0,0.38392454]
[1760141549218,0.4495567,112460.0,112450.0,6.46e-05]
[1760141549413,0.58282088,112460.0,112450.0,0.02315245]
[1760141549619,0.13326418,112460.0,112450.0,0.51191705]
[1760141549821,0.13326418,112460.0,112450.0,0.11191705]
[1760141550415,0.13326418,112460.0,112450.0,0.87271705]
[1760141550620,0.02447281,112470.0,112460.0,0.088759]
[1760141550915,0.02447281,112470.0,112460.0,0.449559]
[1760141551113,0.02447281,112470.0,112460.0,0.87267114]
[1760141551321,4e-08,112470.0,112460.0,0.87267114]
[1760141551710,4e-08,112470.0,112460.0,0.95073114]
[1760141552015,0.0887204,112510.0,112490.0,0.088735]
[1760141552314,0.0887352,112490.0,112470.0,0.0887459]
[1760141552618,0.3608,112500.0,112480.0,0.0887429]
[1760141552619,0.4495278,112500.0,112480.0,0.0887429]
[1760141552823,0.13257835,112490.0,112450.0,0.3608646]
[1760141553113,0.4495593,112460.0,112450.0,0.00781123]
[1760141553516,0.0887849,112430.0,112400.0,0.0888042]
[1760141553711,0.4495749,112440.0,112420.0,0.0887904]
[1760141553911,0.58256725,112430.0,112400.0,0.15192858]
[1760141554120,0.3608,112420.0,112410.0,0.0887977]
[1760141554309,0.3608,112440.0,112420.0,0.08879]
[1760141554514,0.13312891,112430.0,112420.0,0.08879]
[1760141554815,0.49392891,112440.0,112430.0,0.0887821]
[1760141555120,0.3608,112440.0,112430.0,0.0887821]
[1760141555315,0.3608,112460.0,112440.0,0.0887744]
[1760141555521,0.3608,112460.0,112450.0,0.0887665]
[1760141555823,0.08883159,112450.0,112430.0,0.0887814]
[1760141556017,6.339e-05,112450.0,112440.0,0.0887744]
[1760141556518,0.0887743,112440.0,112420.0,0.3608]
[1760141556718,0.4495877,112430.0,112400.0,0.13625091]
[1760141557015,0.3608,112410.0,112400.0,0.0888059]
[1760141557210,0.4495904,112420.0,112400.0,0.0888059]
[1760141557412,0.3608,112420.0,112400.0,0.13625191]
[1760141557714,7.559e-05,112410.0,112400.0,0.13625191]
[1760141558222,7.559e-05,112410.0,112400.0,0.0888059]
[1760141558525,0.0888083,112400.0,112390.0,0.04755656]
[1760141558716,0.4496083,112400.0,112390.0,0.04755656]
[1760141558910,0.4496083,112400.0,112390.0,0.00011055]
[1760141559118,0.44968009,112410.0,112390.0,0.00011055]
[1760141559419,0.4936291,112410.0,112400.0,0.0888091]
[1760141559715,7.559e-05,112410.0,112400.0,1.2904891]
[1760141560419,0.3608,112460.0,112450.0,0.0887685]
[1760141560718,0.39177229,112480.0,112470.0,0.0887527]
[1760141560926,0.3608,112480.0,112470.0,0.0887527]
[1760141561228,0.1329936,112480.0,112470.0,0.8495527]
[1760141561515,0.05598325,112500.0,112490.0,0.0887361]
[1760141561718,0.03097229,112510.0,112500.0,0.0887283]
[1760141562116,0.16484141,112510.0,112500.0,0.0887283]
[1760141562315,0.52564141,112510.0,112490.0,0.0887362]
[1760141562523,0.03097229,112500.0,112490.0,0.0887389]
[1760141562716,0.05528297,112500.0,112490.0,0.0887389]
[1760141562918,0.14401527,112500.0,112480.0,0.4495441]
[1760141563219,0.02431068,112500.0,112490.0,0.4495394]
[1760141563424,0.10154452,112510.0,112500.0,0.0887315]
[1760141563716,0.10154452,112510.0,112470.0,0.3608]
[1760141563717,0.63569133,112510.0,112470.0,0.3608]
[1760141563922,0.4495405,112490.0,112470.0,0.088752]
[1760141564119,0.3608,112490.0,112480.0,0.0887473]
[1760141564315,0.13414505,112490.0,112480.0,0.0887413]
[1760141564522,0.49494505,112490.0,112470.0,0.4495518]
[1760141565118,0.49494505,112490.0,112470.0,0.0887518]
[1760141565318,0.52591734,112490.0,112470.0,0.0887518]
[1760141565818,0.52591734,112490.0,112440.0,0.168858]
[1760141565819,0.3608,112480.0,112440.0,0.168858]
[1760141566019,0.3608,112480.0,112460.0,0.0887629]
[1760141566222,0.58221419,112480.0,112460.0,0.0887629]
[1760141566424,0.3608,112470.0,112450.0,0.0887656]
[1760141566716,0.49479288,112470.0,112460.0,0.0887629]
[1760141566914,0.13399288,112470.0,112460.0,0.0887629]
[1760141567621,0.13399288,112470.0,112460.0,0.4887629]
[1760141567923,0.0887631,112460.0,112440.0,0.0887761]
[1760141568114,0.3608,112460.0,112420.0,0.44088]
[1760141568319,0.3608,112450.0,112440.0,0.0887787]
[1760141568517,0.3608,112450.0,112420.0,0.44088]
[1760141568518,0.49375169,112460.0,112450.0,0.0887708]
[1760141568721,8.575e-05,112470.0,112460.0,0.0887629]
[1760141569125,0.13303744,112470.0,112460.0,0.0887629]
[1760141569423,8.575e-05,112470.0,112460.0,0.8495629]
[1760141569823,8.575e-05,112470.0,112460.0,0.0887629]
[1760141570120,0.0887623,112460.0,112440.0,0.0887749]
[1760141570321,0.4495704,112450.0,112430.0,0.0887806]
[1760141570524,0.0887866,112430.0,112410.0,0.0887967]
[1760141570723,0.0887866,112430.0,112400.0,0.44088]
[1760141570724,0.49446796,112450.0,112400.0,0.5296871]
[1760141570926,0.3608,112440.0,112430.0,0.0887804]
[1760141571229,0.58314731,112440.0,112420.0,0.0887938]
[1760141571418,0.58314731,112440.0,112430.0,0.0887865]
[1760141571419,0.13356531,112440.0,112430.0,0.0887865]
[1760141571620,0.49436531,112440.0,112430.0,0.0887865]
[1760141571817,0.13356531,112440.0,112430.0,0.0887865]
[1760141572021,0.49566865,112460.0,112450.0,0.088771]
[1760141572223,0.0887723,112450.0,112430.0,0.3608]
[1760141572424,0.3608,112440.0,112410.0,0.088799]
[1760141572625,0.3608,112450.0,112440.0,0.0887789]
[1760141573026,0.98256363,112450.0,112420.0,0.0887902]
[1760141573226,0.3608,112440.0,112420.0,0.0887902]
[1760141573422,0.3608,112430.0,112420.0,0.0887902]
[1760141573828,0.49435717,112430.0,112420.0,0.0887902]
[1760141574018,0.49435717,112430.0,112400.0,0.0888037]
[1760141574223,0.49435717,112430.0,112410.0,0.0888014]
[1760141574426,0.49435717,112430.0,112420.0,0.0887945]
[1760141575428,0.13355717,112430.0,112420.0,0.0887945]
[1760141575824,0.49435717,112430.0,112420.0,0.0887945]
[1760141576427,0.89435717,112430.0,112420.0,0.0887945]
[1760141576619,0.89435717,112430.0,112420.0,0.088794]
[1760141577226,0.49435717,112430.0,112420.0,0.088794]
[1760141577528,0.49435717,112430.0,112420.0,0.488794]
[1760141577529,0.13355717,112430.0,112420.0,0.488794]
[1760141578131,0.53355717,112430.0,112420.0,0.088794]
[1760141578330,0.13355717,112430.0,112420.0,0.088794]
[1760141578532,0.49435717,112430.0,112420.0,0.088794]
[1760141578830,0.13355717,112430.0,112420.0,0.088794]
[1760141579626,0.36089369,112450.0,112440.0,0.0887788]
[1760141580025,0.89513851,112450.0,112410.0,0.3608]
[1760141580326,0.49513851,112450.0,112440.0,0.0887789]
[1760141580526,9.369e-05,112450.0,112440.0,0.4495789]
[1760141580828,9.369e-05,112450.0,112430.0,0.088782]
[1760141580829,0.98269444,112450.0,112430.0,0.088782]
[1760141581020,0.0887811,112440.0,112420.0,0.0887895]
[1760141581226,0.4495811,112440.0,112420.0,0.0887895]
[1760141581423,0.49477582,112440.0,112430.0,0.0887869]
[1760141581626,0.13397582,112440.0,112430.0,0.0887869]
[1760141582032,0.13397582,112440.0,112420.0,0.0887927]
[1760141582033,0.22275482,112440.0,112420.0,0.0887927]
[1760141582226,0.13397582,112440.0,112430.0,0.4495869]
[1760141582538,9e-08,112450.0,112440.0,0.088779]
[1760141582827,9e-08,112450.0,112440.0,0.449579]
[1760141583332,9e-08,112450.0,112440.0,0.929539]
[1760141583526,9e-08,112450.0,112440.0,0.168739]
[1760141583724,9e-08,112450.0,112440.0,0.088779]
[1760141584031,0.58313635,112450.0,112430.0,0.3608]
[1760141584227,0.58313635,112450.0,112430.0,0.0887809]
[1760141584432,0.61410864,112450.0,112430.0,0.0887809]
[1760141584623,0.16453754,112450.0,112440.0,0.0887791]
[1760141584828,9e-08,112450.0,112440.0,0.5295391]
[1760141585029,0.0532938,112470.0,112460.0,0.0887633]
[1760141585232,0.0532938,112470.0,112460.0,0.4495633]
[1760141585429,0.00687118,112470.0,112460.0,0.4495633]
[1760141585931,0.04642262,112490.0,112480.0,0.0887475]
[1760141586426,0.04642262,112490.0,112480.0,0.9295075]
[1760141586427,4e-08,112490.0,112480.0,0.9295075]
[1760141586734,4e-08,112490.0,112480.0,0.5295075]
[1760141586927,4e-08,112490.0,112480.0,0.0887475]
[1760141587123,4e-08,112490.0,112470.0,0.3608]
[1760141587331,0.8495501,112480.0,112460.0,0.088762]
[1760141587525,0.4941349,112490.0,112470.0,0.0887544]
[1760141587725,0.2220056,112480.0,112460.0,0.0887604]
[1760141588024,0.4495508,112480.0,112460.0,0.0887633]
[1760141588230,0.4940578,112480.0,112470.0,0.0887542]
[1760141588426,0.44953984,112490.0,112470.0,0.0887542]
[1760141588627,0.3608,112480.0,112470.0,0.0887542]
[1760141588835,0.0887542,112470.0,112450.0,0.0887688]
[1760141589033,0.58372272,112480.0,112460.0,0.0887555]
[1760141589334,0.0887668,112460.0,112440.0,0.0887761]
[1760141589525,0.3608,112450.0,112440.0,0.0887773]
[1760141589732,0.13338258,112460.0,112450.0,0.08877]
[1760141589926,0.4495548,112470.0,112450.0,0.08877]
[1760141590235,0.13338258,112470.0,112450.0,0.3608]
[1760141590437,0.13338258,112470.0,112460.0,0.4495555]
[1760141590640,0.3608,112480.0,112460.0,0.4495555]
[1760141590933,0.3608,112480.0,112470.0,0.0887542]
[1760141591130,0.0887542,112470.0,112450.0,0.0887685]
[1760141591336,0.4495542,112470.0,112440.0,0.44479]
[1760141591536,0.4495542,112470.0,112450.0,0.0887683]
[1760141591735,0.3608,112460.0,112450.0,0.0887683]
[1760141591940,0.08887844,112450.0,112410.0,0.39230381]
[1760141592140,0.4495798,112440.0,112420.0,0.0887899]
[1760141592430,0.13368475,112450.0,112430.0,0.4495858]
[1760141592636,0.44968024,112450.0,112430.0,0.02227959]
[1760141592836,0.4495779,112440.0,112420.0,0.0887912]
[1760141593038,0.4495779,112440.0,112420.0,0.1110765]
[1760141593333,0.3608,112430.0,112420.0,0.0222853]
[1760141593539,0.3608,112430.0,112400.0,0.0888067]
[1760141593540,0.0887937,112420.0,112400.0,0.0888067]
[1760141593837,0.71424312,112430.0,112410.0,0.0888016]
[1760141594032,0.58008654,112430.0,112410.0,0.0888016]
[1760141594434,7.624e-05,112420.0,112410.0,0.0888016]
[1760141594838,7.624e-05,112420.0,112410.0,0.87351152]
[1760141595038,0.3608,112450.0,112430.0,0.0887837]
[1760141595233,0.3608,112460.0,112440.0,0.0887779]
[1760141595534,0.3608,112460.0,112440.0,0.0887748]
[1760141595535,0.58351592,112460.0,112440.0,0.0887748]
[1760141595737,0.3608,112450.0,112430.0,0.4495853]
[1760141596037,0.3608,112440.0,112420.0,0.0887887]
[1760141596238,0.3608,112440.0,112410.0,0.4496005]
[1760141596434,0.4495915,112430.0,112410.0,0.0888005]
[1760141596933,0.4495915,112430.0,112400.0,0.19670682]
[1760141597141,0.3608,112420.0,112400.0,0.19670682]
[1760141597434,0.00011222,112420.0,112400.0,0.5335969]
[1760141597639,0.00011222,112420.0,112410.0,0.0888016]
[1760141598040,0.00011222,112420.0,112410.0,0.4888016]
[1760141598438,0.36091222,112420.0,112410.0,0.0888016]
[1760141598735,0.36191222,112420.0,112410.0,0.0888016]
[1760141598936,0.00111222,112420.0,112410.0,0.8496016]
[1760141599137,0.00111222,112420.0,112410.0,0.87351152]
[1760141599437,0.00111222,112420.0,112410.0,0.47351152]
[1760141599743,0.00111222,112420.0,112410.0,0.4496016]
[1760141600237,0.00011222,112420.0,112410.0,0.4496016]
[1760141600436,0.00011222,112420.0,112410.0,0.0888016]
[1760141600740,0.0439842,112420.0,112410.0,0.4888016]
[1760141600936,0.4047842,112420.0,112410.0,0.0888016]
[1760141601239,0.0439842,112420.0,112410.0,0.0888028]
[1760141601437,0.0449842,112420.0,112410.0,0.8496028]
[1760141601637,0.07181908,112420.0,112410.0,0.87351272]
[1760141601839,0.13550108,112460.0,112420.0,0.08399]
[1760141602136,0.76262084,112460.0,112430.0,0.0887873]
[1760141602343,0.6563728,112460.0,112420.0,0.44479]
[1760141602543,0.69958541,112460.0,112440.0,0.0887725]
[1760141602736,0.4495714,112450.0,112420.0,0.55749032]
[1760141602933,0.00010367,112440.0,112420.0,0.3608]
[1760141603139,0.4495907,112430.0,112410.0,0.088803]
[1760141603341,0.49350296,112440.0,112430.0,0.0887877]
[1760141603537,0.44968837,112440.0,112420.0,0.0887921]
[1760141603740,0.4495948,112430.0,112410.0,0.0888035]
[1760141603939,0.49471297,112440.0,112420.0,0.0887956]
[1760141604140,0.44968447,112440.0,112420.0,0.0887956]
[1760141604545,0.58225015,112440.0,112420.0,0.0887956]
[1760141604841,0.58225015,112440.0,112410.0,0.11271352]
[1760141604842,0.4495908,112430.0,112410.0,0.11271352]
[1760141605045,0.4495935,112430.0,112410.0,0.11271352]
[1760141605246,0.3608,112430.0,112420.0,0.0887981]
[1760141605433,0.36190367,112440.0,112420.0,0.0887981]
[1760141605745,0.36190367,112440.0,112430.0,0.0887902]
[1760141606342,0.00110367,112440.0,112430.0,0.4887902]
[1760141606542,0.00110367,112440.0,112430.0,0.8495902]
[1760141606741,0.00110367,112440.0,112430.0,0.4495902]
[1760141606936,0.00110367,112440.0,112430.0,0.0887902]
[1760141607441,0.00110367,112440.0,112430.0,0.8495902]
[1760141607645,0.00110367,112440.0,112430.0,0.4887902]
[1760141607646,0.00010367,112440.0,112430.0,0.4887902]
[1760141607846,7e-08,112440.0,112430.0,0.8495902]
[1760141608643,7e-08,112440.0,112430.0,0.4495902]
[1760141609045,7e-08,112440.0,112430.0,0.8495902]
[1760141609742,0.16185917,112460.0,112450.0,0.0887751]
[1760141609743,0.07104385,112460.0,112450.0,0.0887751]
[1760141609943,0.42254717,112490.0,112470.0,0.0887594]
[1760141609944,1e-07,112480.0,112470.0,0.0887594]
[1760141610245,0.07238724,112480.0,112470.0,0.0887595]
[1760141610546,0.3608,112490.0,112480.0,0.0887467]
[1760141610848,0.42254717,112500.0,112490.0,0.0887438]
[1760141611048,0.06174717,112500.0,112490.0,0.0887438]
[1760141611245,0.42254717,112500.0,112480.0,0.0887488]
[1760141611443,0.42254717,112500.0,112490.0,0.0887438]
[1760141611640,0.42254717,112500.0,112480.0,0.3608]
[1760141611641,0.6554715,112500.0,112480.0,0.0887486]
[1760141611948,0.3608,112490.0,112470.0,0.0887545]
[1760141612346,0.3608,112490.0,112480.0,0.0887517]
[1760141612557,0.3608,112490.0,112460.0,0.44479]
[1760141612558,0.0887517,112480.0,112450.0,0.3608]
[1760141612741,0.3608,112460.0,112450.0,0.0887737]
[1760141613256,0.001,112480.0,112470.0,0.0887595]
[1760141613547,0.4505547,112480.0,112460.0,0.0887627]
[1760141613848,0.3608,112480.0,112460.0,0.0887645]
[1760141614151,0.3608,112480.0,112440.0,0.5335686]
[1760141614152,0.3608,112470.0,112440.0,0.44479]
[1760141614349,0.3608,112470.0,112450.0,0.0887704]
[1760141614847,0.3608,112460.0,112450.0,0.0887704]
[1760141615250,0.3608,112470.0,112460.0,0.0887649]
[1760141615650,0.36090141,112470.0,112460.0,0.0887649]
[1760141615852,0.89405942,112470.0,112460.0,0.0887649]
[1760141616049,0.0887811,112440.0,112420.0,0.08568102]
[1760141616352,0.58233095,112440.0,112420.0,0.11141856]
[1760141616553,0.00010957,112430.0,112420.0,0.11141856]
[1760141617056,0.36090957,112430.0,112420.0,0.11141856]
[1760141617250,0.36090957,112430.0,112420.0,0.59540856]
[1760141617251,0.00010957,112430.0,112420.0,0.59540856]
[1760141617461,7e-08,112430.0,112420.0,0.97973307]
[1760141617749,0.3608,112480.0,112460.0,0.0887583]
[1760141617954,0.3608,112480.0,112470.0,0.0887568]
[1760141618153,0.13336588,112480.0,112470.0,0.0887568]
[1760141618543,0.13336588,112480.0,112450.0,0.3608]
[1760141618544,0.98291478,112480.0,112460.0,0.0887617]
[1760141618754,0.58291478,112480.0,112460.0,0.0887617]
[1760141619157,0.3608,112470.0,112460.0,0.0887647]
[1760141619448,0.4495411,112490.0,112470.0,0.0887568]
[1760141619753,0.13426291,112480.0,112470.0,0.0887568]
[1760141619948,0.13338424,112480.0,112470.0,0.0887568]
[1760141620148,0.088763,112470.0,112440.0,0.08399]
[1760141620458,0.13318998,112470.0,112460.0,0.0887601]
[1760141620956,9.834e-05,112470.0,112460.0,0.4495601]
[1760141621456,9.834e-05,112470.0,112460.0,0.5298101]
[1760141621748,9.834e-05,112470.0,112460.0,0.9298101]
[1760141621950,4e-08,112480.0,112470.0,0.0887568]
[1760141622250,4e-08,112480.0,112470.0,0.4495568]
[1760141622450,0.11341651,112500.0,112490.0,0.088741]
[1760141622653,0.4495299,112510.0,112490.0,0.088741]
[1760141622950,0.3608,112510.0,112500.0,0.0887331]
[1760141623157,0.43283435,112510.0,112500.0,0.0887331]
[1760141623455,0.07203435,112510.0,112500.0,0.0887331]
[1760141623650,0.3608,112510.0,112500.0,0.0887331]
[1760141623848,0.3608,112510.0,112490.0,0.0887408]
[1760141623849,0.62664897,112510.0,112490.0,0.0887408]
[1760141624045,0.4495332,112500.0,112480.0,0.1689957]
[1760141624246,0.3608,112490.0,112470.0,0.0887515]
[1760141624453,0.4495482,112490.0,112470.0,0.0887515]
[1760141624649,0.58305188,112490.0,112470.0,0.0887515]
[1760141624851,0.49430368,112490.0,112480.0,0.0887489]
[1760141625249,0.13350368,112490.0,112480.0,0.0887489]
[1760141625554,0.49430368,112490.0,112480.0,0.5689989]
[1760141625755,0.47509722,112510.0,112500.0,0.0887333]
[1760141625951,0.47509722,112510.0,112480.0,0.3608]
[1760141626258,0.001,112490.0,112480.0,0.441061]
[1760141626459,0.001,112490.0,112480.0,0.46405673]
[1760141626656,0.001,112490.0,112480.0,0.86405673]
[1760141626957,0.47719219,112510.0,112500.0,0.0887332]
[1760141627157,0.47719219,112510.0,112490.0,0.0887376]
[1760141627349,0.60855172,112510.0,112500.0,0.0887332]
[1760141627562,0.24775172,112510.0,112500.0,0.0887332]
[1760141627756,0.11439219,112510.0,112500.0,0.0887332]
[1760141627956,0.05944449,112510.0,112500.0,0.9297832]
[1760141628155,9e-08,112510.0,112500.0,0.9297832]
[1760141628355,9e-08,112510.0,112500.0,0.95275598]
[1760141628847,9e-08,112510.0,112500.0,0.55275598]
[1760141629050,0.00200009,112510.0,112500.0,0.5297832]
[1760141629358,0.07397754,112510.0,112500.0,0.5297832]
[1760141629555,0.09072509,112510.0,112500.0,0.08025]
[1760141629752,0.40000009,112510.0,112500.0,0.001]
[1760141629955,0.40000009,112510.0,112500.0,0.0897329]
[1760141630159,9e-08,112510.0,112500.0,0.0897329]
[1760141630359,9e-08,112510.0,112500.0,0.4495329]
[1760141630558,9e-08,112510.0,112500.0,0.9326029]
[1760141631867,9e-08,112510.0,112500.0,0.55608538]
[1760141633165,9e-08,112510.0,112500.0,0.95608538]
[1760141633563,0.3608,112550.0,112510.0,0.0887251]
[1760141633856,0.13257713,112550.0,112530.0,0.0887083]
[1760141634059,0.088714,112530.0,112510.0,0.3608]
[1760141634261,0.4495173,112520.0,112500.0,0.08873]
[1760141634456,0.3608,112520.0,112500.0,0.08873]
[1760141634657,0.4495173,112520.0,112500.0,0.0887295]
[1760141635070,0.3608,112520.0,112510.0,0.0887252]
[1760141635362,6.39e-05,112510.0,112500.0,0.533603]
[1760141635766,6.39e-05,112510.0,112500.0,0.088733]
[1760141637261,0.4000639,112510.0,112500.0,0.088733]
[1760141637758,6.39e-05,112510.0,112500.0,0.088733]
[1760141638861,6.39e-05,112510.0,112500.0,0.449533]
[1760141639170,6.39e-05,112510.0,112500.0,0.088733]
[1760141639861,6.39e-05,112510.0,112500.0,0.95661955]
[1760141640861,0.4000639,112510.0,112500.0,0.11775045]
[1760141641061,1.02369754,112510.0,112500.0,0.005]
[1760141641462,0.12887,112480.0,112470.0,6.95e-05]
[1760141641663,0.40098889,112480.0,112460.0,0.0887657]
[1760141641864,0.53361337,112480.0,112460.0,0.0887634]
[1760141642162,0.49349337,112480.0,112470.0,0.0887586]
[1760141642357,0.13269337,112480.0,112470.0,0.0887586]
[1760141642563,6.889e-05,112480.0,112470.0,0.4495586]
[1760141642766,6.889e-05,112480.0,112470.0,0.8495586]
[1760141643770,6.889e-05,112480.0,112470.0,0.0887586]
[1760141643964,6.889e-05,112480.0,112470.0,0.4495586]
[1760141644165,0.07151189,112480.0,112470.0,0.4495586]
[1760141644666,0.83231189,112480.0,112450.0,0.4495725]
[1760141644970,0.3608,112470.0,112460.0,0.0887663]
[1760141645172,0.3608,112470.0,112430.0,0.44387]
[1760141645472,0.3608,112450.0,112430.0,0.44387]
[1760141645671,0.3608,112450.0,112440.0,0.0887817]
[1760141645868,0.488183,112480.0,112460.0,0.0887663]
[1760141646170,0.071443,112480.0,112470.0,0.0887584]
[1760141646380,0.3608,112490.0,112480.0,0.0887505]
[1760141646666,8.732e-05,112490.0,112480.0,0.8495505]
[1760141646966,8.732e-05,112490.0,112480.0,0.0887505]
[1760141646967,0.36088732,112490.0,112480.0,0.0887505]
[1760141647273,8.732e-05,112490.0,112480.0,0.4495505]
[1760141647477,8.732e-05,112490.0,112480.0,0.9326205]
[1760141647771,8.732e-05,112490.0,112480.0,0.5718205]
[1760141647965,8.732e-05,112490.0,112480.0,0.0887505]
[1760141648164,8.732e-05,112490.0,112480.0,0.4887505]
[1760141648470,8.732e-05,112490.0,112480.0,0.9307005]
[1760141648774,0.76088732,112490.0,112470.0,0.0887548]
[1760141648975,0.36088732,112490.0,112480.0,0.0887506]